fUST/lending_fUST_20250609
["ID","MTS","AMOUNT","RATE_DAILY","PERIOD"]
[365118474,1749474642855,-440.0,0.00022191,4]
[365118475,1749474642865,-421.21475966,0.00022191,4]
[365118476,1749474642875,-467.92466509,0.00022191,4]
[365118477,1749474642886,-1920.52,0.00022191,4]
[365118478,1749474642896,-440.0,0.00022191,4]
[365118479,1749474642907,-1636.47,0.00022191,4]
[365118480,1749474642917,-440.0,0.00022191,4]
[365118481,1749474642927,-410.0,0.00022191,4]
[365118482,1749474642936,-440.0,0.00022191,4]
[365118483,1749474642946,-627.51,0.00022191,4]
[365118484,1749474642956,-452.23925919,0.00022191,4]
[365118485,1749474642965,-440.0,0.00022191,4]
[365118486,1749474642975,-440.0,0.00022191,4]
[365118487,1749474642985,-440.0,0.00022191,4]
[365118488,1749474642995,-440.0,0.00022191,4]
[365118489,1749474643004,-736.45,0.00022191,4]
[365118490,1749474643014,-440.0,0.00022191,4]
[365118491,1749474643025,-440.0,0.00022191,4]
[365118492,1749474643035,-440.0,0.00022191,4]
[365118493,1749474643045,-440.0,0.00022191,4]
[365118494,1749474643055,-440.0,0.00022191,4]
[365118495,1749474643065,-440.0,0.00022191,4]
[365118496,1749474643075,-440.0,0.00022191,4]
[365118497,1749474643084,-440.0,0.00022191,4]
[365118498,1749474643094,-607.69,0.00022191,4]
[365118499,1749474643104,-440.0,0.00022191,4]
[365118500,1749474643114,-847.9,0.00022191,4]
[365118501,1749474643124,-440.0,0.00022191,4]
[365118502,1749474643139,-440.0,0.00022191,4]
[365118503,1749474643149,-440.0,0.00022191,4]
[365118505,1749474643159,-1920.28,0.00022191,4]
[365118507,1749474643169,-463.38458235,0.00022191,4]
[365118509,1749474643179,-219.76687433,0.00022191,4]
[365118510,1749474643189,-440.0,0.00022191,4]
[365118511,1749474643199,-413.29586856,0.00022191,4]
[365118512,1749474643209,-420.0,0.00022191,4]
[365118513,1749474643218,-440.0,0.00022191,4]
[365118514,1749474643228,-440.0,0.00022191,4]
[365118515,1749474643237,-440.0,0.00022191,4]
[365118517,1749474643247,-440.0,0.00022191,4]
[365118518,1749474643256,-2918.21,0.00022191,4]
[365118520,1749474643266,-318.26145213,0.00022191,4]
[365118522,1749474643275,-440.0,0.00022191,4]
[365118523,1749474643284,-440.0,0.00022191,4]
[365118525,1749474643294,-440.0,0.00022191,4]
[365118526,1749474643304,-350.0,0.00022191,2]
[365118528,1749474643316,-440.0,0.00022191,4]
[365118529,1749474643326,-440.0,0.00022191,4]
[365118530,1749474643335,-440.0,0.00022191,4]
[365118531,1749474643345,-440.0,0.00022191,4]
[365118532,1749474643355,-440.0,0.00022191,4]
[365118533,1749474643365,-440.0,0.00022191,4]
[365118535,1749474643375,-440.0,0.00022191,4]
[365118537,1749474643384,-440.0,0.00022191,4]
[365118538,1749474643394,-440.0,0.00022191,4]
[365118539,1749474643404,-1168.5,0.00022191,4]
[365118540,1749474643414,-440.0,0.00022191,4]
[365118541,1749474643424,-541.39,0.00022191,4]
[365118542,1749474643433,-440.0,0.00022191,4]
[365118543,1749474643443,-787.55,0.00022191,4]
[365118544,1749474643453,-440.0,0.00022191,4]
[365118545,1749474643462,-2032.57,0.00022191,4]
[365118546,1749474643472,-440.0,0.00022191,4]
[365118547,1749474643482,-440.0,0.00022191,4]
[365118548,1749474643492,-440.0,0.00022191,4]
[365118549,1749474643501,-440.0,0.00022191,4]
[365118550,1749474643511,-522.73462613,0.00022191,4]
[365118551,1749474643521,-440.0,0.00022191,4]
[365118552,1749474643531,-440.0,0.00022191,4]
[365118554,1749474643541,-440.0,0.00022191,4]
[365118555,1749474643551,-420.0,0.00022191,4]
[365118556,1749474643561,-947.64,0.00022191,4]
[365118557,1749474643570,-410.0,0.00022191,4]
[365118558,1749474643580,-440.0,0.00022191,4]
[365118559,1749474643589,-442.95123552,0.00022191,4]
[365118560,1749474643599,-4353.31,0.00022191,4]
[365118561,1749474643609,-440.0,0.00022191,4]
[365118562,1749474643619,-440.0,0.00022191,4]
[365118563,1749474643628,-440.0,0.00022191,4]
[365118564,1749474643638,-420.0,0.00022191,4]
[365118565,1749474643648,-1150.35,0.00022191,4]
[365118566,1749474643660,-72455.52,0.000222,2]
[365118567,1749474643670,-1132.82867024,0.000222,69]
[365118568,1749474643679,-1132.82867022,0.000222,69]
[365118569,1749474643689,-1132.82867022,0.000222,69]
[365118570,1749474643699,-151.0,0.000222,9]
[365118571,1749474643708,-1826.05776513,0.0002221,6]
[365118572,1749474643717,-2187.98593345,0.00022228,2]
[365118573,1749474643727,-2750.0,0.00022278,7]
[365118574,1749474643737,-213.08899333,0.00022278,7]
[365118575,1749474643748,-11856.04170836,0.00022278,7]
[365118576,1749474643757,-842.5625,0.00022278,7]
[365118578,1749474643767,-15189.0,0.000223,2]
[365118580,1749474643777,-151.0,0.000223,9]
[365118581,1749474643786,-1826.05776513,0.00022314,7]
[365118582,1749474643795,-160.0,0.00022356,2]
[365118583,1749474643805,-11856.04170836,0.00022356,2]
[365118584,1749474643815,-160.0,0.00022356,2]
[365118585,1749474643900,-424.05420114,0.00022356,2]
[365118586,1749474643910,-842.5625,0.00022356,2]
[365118587,1749474643920,-213.08899333,0.00022356,2]
[365118588,1749474643929,-160.0,0.00022356,2]
[365118589,1749474643939,-834.7738823,0.00022356,2]
[365118590,1749474643948,-229.64266968,0.00022356,2]
[365118591,1749474643957,-160.0,0.00022356,2]
[365118592,1749474643967,-160.0,0.00022357,2]
[365118593,1749474643977,-151.0,0.000224,6]
[365118594,1749474643986,-182.63514545,0.00022408,2]
[365118595,1749474643995,-1826.05776513,0.00022417,7]
[365118596,1749474644005,-2187.98593345,0.00022434,2]
[365118597,1749474644015,-250.0,0.00022447,2]
[365118598,1749474644024,-545.8,0.00022464,3]
[365118599,1749474644033,-500.0,0.00022464,4]
[365118600,1749474644043,-500.0,0.00022464,4]
[365118601,1749474644052,-500.0,0.00022464,4]
[365118602,1749474644062,-500.0,0.00022464,4]
[365118603,1749474644072,-169.73,0.00022464,4]
[365118604,1749474644081,-440.0,0.00022465,4]
[365118605,1749474644091,-343.12071737,0.00022465,4]
[365118606,1749474644100,-400.0,0.00022465,4]
[365118607,1749474644109,-440.0,0.00022465,4]
[365118608,1749474644119,-440.0,0.00022465,4]
[365118609,1749474644128,-440.0,0.00022465,4]
[365118610,1749474644138,-440.0,0.00022465,4]
[365118611,1749474644147,-440.0,0.00022465,4]
[365118612,1749474644157,-410.0,0.00022465,4]
[365118613,1749474644166,-519.12231042,0.00022465,4]
[365118614,1749474644175,-440.0,0.00022465,4]
[365118615,1749474644185,-440.0,0.00022465,4]
[365118616,1749474644194,-440.0,0.00022465,4]
[365118617,1749474644203,-440.0,0.00022465,4]
[365118618,1749474644212,-440.0,0.00022465,4]
[365118619,1749474644221,-440.0,0.00022465,4]
[365118620,1749474644231,-440.0,0.00022465,4]
[365118621,1749474644240,-440.0,0.00022465,4]
[365118622,1749474644250,-375.74512728,0.00022465,4]
[365118623,1749474644259,-440.0,0.00022465,4]
[365118624,1749474644268,-440.0,0.00022465,4]
[365118625,1749474644277,-440.0,0.00022465,4]
[365118626,1749474644287,-440.0,0.00022465,4]
[365118627,1749474644296,-440.0,0.00022465,4]
[365118628,1749474644306,-500.0,0.00022465,4]
[365118629,1749474644315,-440.0,0.00022465,4]
[365118630,1749474644324,-440.0,0.00022465,4]
[365118631,1749474644333,-440.0,0.00022465,4]
[365118632,1749474644343,-440.0,0.00022465,4]
[365118633,1749474644352,-440.0,0.00022465,4]
[365118634,1749474644361,-440.0,0.00022465,4]
[365118635,1749474644370,-440.0,0.00022465,4]
[365118636,1749474644379,-410.0,0.00022465,4]
[365118637,1749474644389,-440.0,0.00022465,4]
[365118638,1749474644398,-440.0,0.00022465,4]
[365118639,1749474644407,-440.0,0.00022465,4]
[365118640,1749474644417,-440.0,0.00022465,4]
[365118641,1749474644427,-440.0,0.00022465,4]
[365118642,1749474644437,-440.0,0.00022465,4]
[365118643,1749474644446,-440.0,0.00022465,4]
[365118644,1749474644456,-440.0,0.00022465,4]
[365118645,1749474644465,-440.0,0.00022465,4]
[365118646,1749474644475,-440.0,0.00022465,4]
[365118647,1749474644484,-420.0,0.00022465,4]
[365118648,1749474644493,-440.0,0.00022465,4]
[365118649,1749474644503,-237.03695198,0.00022465,4]
[365118650,1749474644512,-440.0,0.00022465,4]
[365118651,1749474644522,-440.0,0.00022465,4]
[365118652,1749474644532,-440.0,0.00022465,4]
[365118653,1749474644541,-440.0,0.00022465,4]
[365118654,1749474644552,-420.0,0.00022465,4]
[365118655,1749474644562,-440.0,0.00022465,4]
[365118656,1749474644571,-440.0,0.00022465,4]
[365118657,1749474644581,-400.0,0.00022465,4]
[365118658,1749474644591,-440.0,0.00022465,4]
[365118659,1749474644601,-440.0,0.00022465,4]
[365118660,1749474644610,-420.0,0.00022465,4]
[365118661,1749474644620,-440.0,0.00022465,4]
[365118662,1749474644631,-440.0,0.00022465,4]
[365118663,1749474644640,-440.0,0.00022465,4]
[365118664,1749474644652,-440.0,0.00022465,4]
[365118665,1749474644666,-440.0,0.00022465,4]
[365118666,1749474644675,-440.0,0.00022465,4]
[365118667,1749474644684,-440.0,0.00022465,4]
[365118668,1749474644694,-440.0,0.00022465,4]
[365118669,1749474644704,-440.0,0.00022465,4]
[365118670,1749474644714,-440.0,0.00022465,4]
[365118671,1749474644723,-347.85841043,0.00022465,4]
[365118672,1749474644735,-440.0,0.00022465,4]
[365118673,1749474644744,-440.0,0.00022465,4]
[365118674,1749474644754,-440.0,0.00022465,4]
[365118675,1749474644764,-397.29061457,0.00022465,4]
[365118676,1749474644774,-440.0,0.00022465,4]
[365118677,1749474644784,-440.0,0.00022465,4]
[365118678,1749474644793,-440.0,0.00022465,4]
[365118679,1749474644803,-400.0,0.00022465,4]
[365118680,1749474644813,-440.0,0.00022465,4]
[365118681,1749474644823,-440.0,0.00022465,2]
[365118682,1749474644832,-440.0,0.00022465,4]
[365118683,1749474644842,-440.0,0.00022465,4]
[365118684,1749474644851,-440.0,0.00022465,4]
[365118685,1749474644860,-440.0,0.00022465,4]
[365118686,1749474644870,-400.0,0.00022465,4]
[365118687,1749474644879,-400.0,0.00022465,4]
[365118688,1749474644889,-440.0,0.00022465,4]
[365118689,1749474644898,-440.0,0.00022465,4]
[365118690,1749474644907,-440.0,0.00022465,4]
[365118691,1749474644917,-440.0,0.00022465,4]
[365118692,1749474644926,-500.0,0.00022465,2]
[365118693,1749474644936,-440.0,0.00022465,4]
[365118694,1749474644945,-440.0,0.00022465,4]
[365118695,1749474644954,-256.70956453,0.00022465,4]
[365118696,1749474644964,-390.0,0.00022465,4]
[365118697,1749474644973,-372.83891976,0.00022465,4]
[365118698,1749474644983,-440.0,0.00022465,4]
[365118699,1749474644992,-440.0,0.00022465,4]
[365118700,1749474645002,-440.0,0.00022465,4]
[365118701,1749474645011,-373.48685481,0.00022465,4]
[365118702,1749474645021,-440.0,0.00022465,4]
[365118703,1749474645030,-440.0,0.00022465,4]
[365118704,1749474645040,-440.0,0.00022465,4]
[365118705,1749474645049,-440.0,0.00022465,4]
[365118706,1749474645059,-440.0,0.00022465,4]
[365118707,1749474645069,-201.085647,0.00022465,4]
[365118708,1749474645080,-440.0,0.00022465,4]
[365118709,1749474645089,-440.0,0.00022465,4]
[365118710,1749474645103,-440.0,0.00022465,4]
[365118711,1749474645114,-440.0,0.00022465,4]
[365118712,1749474645130,-440.0,0.00022465,4]
[365118713,1749474645139,-8516.89,0.00022465,4]
[365118714,1749474645149,-404.66447867,0.00022465,4]
[365118715,1749474645158,-440.0,0.00022465,4]
[365118716,1749474645168,-398.38865541,0.00022465,4]
[365118717,1749474645177,-440.0,0.00022465,4]
[365118718,1749474645185,-440.0,0.00022465,4]
[365118719,1749474645195,-532.02,0.00022465,4]
[365118720,1749474645204,-440.0,0.00022465,4]
[365118721,1749474645213,-653.57,0.00022465,4]
[365118722,1749474645222,-3787.32,0.00022465,4]
[365118723,1749474645231,-440.0,0.00022465,4]
[365118724,1749474645241,-440.0,0.00022465,4]
[365118725,1749474645250,-440.0,0.00022465,4]
[365118726,1749474645260,-1938.33,0.00022465,4]
[365118727,1749474645269,-547.08,0.00022465,4]
[365118728,1749474645279,-440.0,0.00022465,4]
[365118729,1749474645288,-440.0,0.00022465,4]
[365118730,1749474645297,-440.0,0.00022465,4]
[365118731,1749474645307,-440.0,0.00022465,4]
[365118732,1749474645316,-440.0,0.00022465,4]
[365118733,1749474645325,-440.0,0.00022465,4]
[365118734,1749474645333,-695.15,0.00022465,4]
[365118735,1749474645341,-4898.39,0.00022465,4]
[365118736,1749474645350,-440.0,0.00022465,4]
[365118737,1749474645360,-440.0,0.00022465,4]
[365118738,1749474645370,-440.0,0.00022465,4]
[365118739,1749474645467,-440.0,0.00022465,4]
[365118740,1749474645477,-440.0,0.00022465,4]
[365118741,1749474645487,-663.04,0.00022465,4]
[365118742,1749474645497,-440.0,0.00022465,4]
[365118743,1749474645507,-440.0,0.00022465,4]
[365118744,1749474645516,-440.0,0.00022465,4]
[365118745,1749474645526,-440.0,0.00022465,4]
[365118746,1749474645536,-440.0,0.00022465,4]
[365118747,1749474645546,-440.0,0.00022465,4]
[365118748,1749474645556,-440.0,0.00022465,4]
[365118749,1749474645567,-440.0,0.00022465,4]
[365118750,1749474645577,-440.0,0.00022465,4]
[365118751,1749474645587,-686.85,0.00022465,4]
[365118752,1749474645597,-1865.17,0.00022465,4]
[365118753,1749474645607,-440.0,0.00022465,4]
[365118754,1749474645616,-440.0,0.00022465,4]
[365118755,1749474645626,-440.0,0.00022465,4]
[365118756,1749474645636,-410.0,0.00022465,4]
[365118757,1749474645646,-440.0,0.00022465,4]
[365118758,1749474645660,-995.36,0.00022465,4]
[365118759,1749474645670,-4114.26,0.00022465,4]
[365118760,1749474645681,-440.0,0.00022465,4]
[365118761,1749474645690,-2745.12,0.00022465,4]
[365118762,1749474645701,-4986.72,0.00022465,4]
[365118763,1749474645711,-1090.86,0.00022465,4]
[365118764,1749474645720,-440.0,0.00022465,4]
[365118765,1749474645731,-440.0,0.00022465,4]
[365118766,1749474645741,-440.0,0.00022465,4]
[365118767,1749474645750,-588.56,0.00022465,4]
[365118768,1749474645759,-440.0,0.00022465,4]
[365118769,1749474645769,-363.57466661,0.00022465,4]
[365118770,1749474645780,-979.69,0.00022465,4]
[365118771,1749474645790,-440.0,0.00022465,4]
[365118772,1749474645800,-440.0,0.00022465,4]
[365118773,1749474645811,-472.24,0.00022465,4]
[365118774,1749474645821,-440.0,0.00022465,4]
[365118775,1749474645830,-440.0,0.00022465,4]
[365118776,1749474645840,-440.0,0.00022465,4]
[365118777,1749474645849,-440.0,0.00022465,4]
[365118778,1749474645860,-440.0,0.00022465,4]
[365118779,1749474645869,-440.0,0.00022465,4]
[365118780,1749474645879,-440.0,0.00022465,4]
[365118781,1749474645889,-440.0,0.00022465,4]
[365118782,1749474645898,-410.0,0.00022465,4]
[365118783,1749474645908,-1254.23,0.00022465,4]
[365118784,1749474645918,-440.0,0.00022465,4]
[365118785,1749474645931,-400.0,0.00022465,4]
[365118786,1749474645942,-440.0,0.00022465,4]
[365118787,1749474645951,-440.0,0.00022465,4]
[365118788,1749474645961,-420.0,0.00022465,4]
[365118789,1749474645971,-440.0,0.00022465,4]
[365118790,1749474645980,-440.0,0.00022465,4]
[365118791,1749474645991,-1920.52,0.00022465,4]
[365118792,1749474646000,-410.0,0.00022465,4]
[365118793,1749474646010,-1636.47,0.00022465,4]
[365118794,1749474646019,-440.0,0.00022465,4]
[365118795,1749474646029,-440.0,0.00022465,4]
[365118796,1749474646039,-627.51,0.00022465,4]
[365118797,1749474646049,-440.0,0.00022465,4]
[365118798,1749474646059,-440.0,0.00022465,4]
[365118799,1749474646069,-440.0,0.00022465,4]
[365118800,1749474646079,-440.0,0.00022465,4]
[365118802,1749474646089,-736.45,0.00022465,4]
[365118804,1749474646099,-440.0,0.00022465,4]
[365118806,1749474646109,-430.0,0.00022465,4]
[365118808,1749474646118,-440.0,0.00022465,4]
[365118809,1749474646128,-440.0,0.00022465,4]
[365118810,1749474646138,-440.0,0.00022465,4]
[365118811,1749474646148,-440.0,0.00022465,4]
[365118812,1749474646158,-430.0,0.00022465,4]
[365118813,1749474646168,-440.0,0.00022465,4]
[365118814,1749474646178,-607.69,0.00022465,4]
[365118815,1749474646188,-440.0,0.00022465,4]
[365118816,1749474646198,-847.9,0.00022465,4]
[365118817,1749474646207,-440.0,0.00022465,4]
[365118818,1749474646217,-440.0,0.00022465,4]
[365118819,1749474646227,-440.0,0.00022465,4]
[365118820,1749474646237,-1920.28,0.00022465,4]
[365118821,1749474646247,-408.26081988,0.00022465,4]
[365118822,1749474646257,-400.0,0.00022465,4]
[365118823,1749474646267,-440.0,0.00022465,4]
[365118824,1749474646277,-440.0,0.00022465,4]
[365118825,1749474646286,-440.0,0.00022465,4]
[365118826,1749474646296,-2918.21,0.00022465,4]
[365118827,1749474646306,-370.0,0.00022465,4]
[365118828,1749474646317,-440.0,0.00022465,4]
[365118829,1749474646327,-440.0,0.00022465,4]
[365118830,1749474646337,-350.0,0.00022465,2]
[365118831,1749474646347,-440.0,0.00022465,4]
[365118833,1749474646356,-440.0,0.00022465,4]
[365118834,1749474646366,-440.0,0.00022465,4]
[365118835,1749474646376,-440.0,0.00022465,4]
[365118836,1749474646386,-440.0,0.00022465,4]
[365118837,1749474646395,-440.0,0.00022465,4]
[365118838,1749474646404,-440.0,0.00022465,4]
[365118839,1749474646414,-433.50776994,0.00022465,4]
[365118840,1749474646424,-440.0,0.00022465,4]
[365118841,1749474646434,-1168.5,0.00022465,4]
[365118842,1749474646444,-440.0,0.00022465,4]
[365118844,1749474646453,-541.39,0.00022465,4]
[365118845,1749474646463,-440.0,0.00022465,4]
[365118846,1749474646473,-787.55,0.00022465,4]
[365118847,1749474646482,-389.81196213,0.00022465,4]
[365118848,1749474646492,-2032.57,0.00022465,4]
[365118849,1749474646502,-440.0,0.00022465,4]
[365118850,1749474646512,-440.0,0.00022465,4]
[365118851,1749474646522,-440.0,0.00022465,4]
[365118852,1749474646532,-440.0,0.00022465,4]
[365118853,1749474646541,-440.0,0.00022465,4]
[365118854,1749474646551,-440.0,0.00022465,4]
[365118855,1749474646561,-170.31096563,0.00022465,4]
[365118856,1749474646570,-947.64,0.00022465,4]
[365118857,1749474646580,-440.0,0.00022465,4]
[365118858,1749474646589,-4353.31,0.00022465,4]
[365118859,1749474646601,-440.0,0.00022465,4]
[365118860,1749474646610,-440.0,0.00022465,4]
[365118861,1749474646619,-440.0,0.00022465,4]
[365118862,1749474646629,-1150.35,0.00022465,4]
[365118864,1749474646639,-575.4,0.000225,7]
[365118865,1749474646649,-151.0,0.000225,6]
[365118866,1749474646664,-2750.0,0.00022512,7]
[365118867,1749474646674,-1000.0,0.00022521,2]
[365118868,1749474646684,-1000.0,0.00022521,2]
[365118869,1749474646695,-501.20381697,0.00022521,2]
[365118870,1749474646704,-516.90585791,0.00022521,2]
[365118871,1749474646714,-850.21235049,0.00022521,2]
[365118872,1749474646723,-1000.0,0.00022521,2]
[365118873,1749474646734,-500.0,0.00022521,2]
[365118874,1749474646744,-1021.35746861,0.00022521,2]
[365118875,1749474646753,-1000.0,0.00022521,2]
[365118876,1749474646764,-1826.05776513,0.00022521,7]
[365118877,1749474646773,-158.44491473,0.00022548,2]
[365118878,1749474646783,-158.44491473,0.00022548,2]
[365118879,1749474646792,-956.59785628,0.00022558,2]
[365118880,1749474646801,-151.0,0.000226,6]
[365118881,1749474646811,-151.0,0.000226,10]
[365118882,1749474646820,-1826.05776513,0.00022624,7]
[365118883,1749474646830,-2187.98593345,0.00022639,2]
[365118884,1749474646839,-1688.0,0.00022643,2]
[365118885,1749474646849,-5000.0,0.00022643,2]
[365118886,1749474646859,-368.20773932,0.00022643,2]
[365118889,1749474646947,-500.0,0.00022643,2]
[365118890,1749474646959,-500.0,0.00022643,2]
[365118891,1749474646969,-500.0,0.00022643,2]
[365118892,1749474646979,-500.0,0.00022643,2]
[365118893,1749474646989,-500.0,0.00022643,2]
[365118894,1749474646999,-500.0,0.00022643,2]
[365118895,1749474647008,-500.0,0.00022643,2]
[365118896,1749474647017,-500.0,0.00022643,2]
[365118897,1749474647026,-500.0,0.00022643,2]
[365118898,1749474647036,-500.0,0.00022643,2]
[365118899,1749474647045,-411.34895219,0.00022643,2]
[365118900,1749474647054,-207.4,0.00022643,2]
[365118901,1749474647063,-1750.456,0.00022698,2]
[365118902,1749474647073,-500.0,0.00022721,2]
[365118903,1749474647083,-1000.0,0.00022721,2]
[365118904,1749474647092,-1000.0,0.00022721,2]
[365118905,1749474647101,-1000.0,0.00022721,2]
[365118906,1749474647110,-1000.0,0.00022721,2]
[365118907,1749474647121,-1000.0,0.00022721,2]
[365118908,1749474647130,-1000.0,0.00022721,2]
[365118909,1749474647140,-972.49512433,0.00022721,2]
[365118910,1749474647149,-1000.0,0.00022721,2]
[365118911,1749474647158,-1000.0,0.00022721,2]
[365118912,1749474647167,-1000.0,0.00022721,2]
[365118913,1749474647176,-561.77688493,0.00022721,2]
[365118914,1749474647185,-1826.05776513,0.00022728,7]
[365118915,1749474647194,-420.0,0.00022735,2]
[365118916,1749474647203,-420.0,0.00022735,2]
[365118917,1749474647212,-300.0,0.00022735,2]
[365118918,1749474647222,-420.0,0.00022735,2]
[365118919,1749474647231,-430.0,0.00022739,4]
[365118920,1749474647240,-440.0,0.00022739,4]
[365118921,1749474647250,-440.0,0.00022739,4]
[365118922,1749474647259,-518.33692161,0.00022739,4]
[365118923,1749474647269,-507.51432381,0.00022739,4]
[365118924,1749474647279,-410.0,0.00022739,4]
[365118925,1749474647288,-249.02398371,0.00022739,4]
[365118926,1749474647297,-440.0,0.00022739,4]
[365118927,1749474647307,-440.0,0.00022739,4]
[365118928,1749474647318,-400.0,0.00022739,4]
[365118929,1749474647327,-440.0,0.00022739,4]
[365118930,1749474647338,-440.0,0.00022739,4]
[365118931,1749474647347,-440.0,0.00022739,4]
[365118932,1749474647357,-440.0,0.00022739,4]
[365118933,1749474647367,-440.0,0.00022739,4]
[365118934,1749474647376,-440.0,0.00022739,4]
[365118935,1749474647386,-396.35092718,0.00022739,4]
[365118936,1749474647395,-440.0,0.00022739,4]
[365118937,1749474647405,-500.0,0.00022739,4]
[365118938,1749474647414,-440.0,0.00022739,4]
[365118939,1749474647424,-440.0,0.00022739,4]
[365118940,1749474647432,-440.0,0.00022739,4]
[365118941,1749474647441,-440.0,0.00022739,4]
[365118942,1749474647452,-440.0,0.00022739,4]
[365118943,1749474647461,-440.0,0.00022739,4]
[365118944,1749474647470,-440.0,0.00022739,4]
[365118945,1749474647479,-440.0,0.00022739,4]
[365118946,1749474647488,-440.0,0.00022739,4]
[365118947,1749474647497,-440.0,0.00022739,4]
[365118948,1749474647507,-440.0,0.00022739,4]
[365118949,1749474647516,-440.0,0.00022739,4]
[365118950,1749474647525,-440.0,0.00022739,4]
[365118951,1749474647534,-440.0,0.00022739,4]
[365118952,1749474647543,-440.0,0.00022739,4]
[365118953,1749474647552,-440.0,0.00022739,4]
[365118954,1749474647562,-440.0,0.00022739,4]
[365118955,1749474647571,-440.0,0.00022739,4]
[365118956,1749474647581,-440.0,0.00022739,4]
[365118957,1749474647590,-440.0,0.00022739,4]
[365118958,1749474647600,-440.0,0.00022739,4]
[365118959,1749474647609,-440.0,0.00022739,4]
[365118960,1749474647618,-440.0,0.00022739,4]
[365118961,1749474647628,-400.0,0.00022739,4]
[365118962,1749474647637,-410.0,0.00022739,4]
[365118963,1749474647647,-440.0,0.00022739,4]
[365118964,1749474647659,-440.0,0.00022739,4]
[365118965,1749474647668,-440.0,0.00022739,4]
[365118966,1749474647679,-440.0,0.00022739,4]
[365118967,1749474647689,-440.0,0.00022739,4]
[365118968,1749474647699,-440.0,0.00022739,4]
[365118969,1749474647709,-461.52746359,0.00022739,4]
[365118970,1749474647718,-440.0,0.00022739,4]
[365118971,1749474647729,-440.0,0.00022739,4]
[365118972,1749474647738,-440.0,0.00022739,4]
[365118973,1749474647748,-440.0,0.00022739,4]
[365118974,1749474647758,-440.0,0.00022739,4]
[365118975,1749474647767,-440.0,0.00022739,4]
[365118976,1749474647777,-440.0,0.00022739,4]
[365118977,1749474647787,-440.0,0.00022739,4]
[365118978,1749474647796,-440.0,0.00022739,2]
[365118979,1749474647805,-440.0,0.00022739,4]
[365118980,1749474647816,-440.0,0.00022739,4]
[365118981,1749474647825,-440.0,0.00022739,4]
[365118982,1749474647835,-440.0,0.00022739,4]
[365118983,1749474647845,-440.0,0.00022739,4]
[365118984,1749474647854,-253.29752658,0.00022739,4]
[365118985,1749474647864,-440.0,0.00022739,4]
[365118986,1749474647873,-440.0,0.00022739,4]
[365118987,1749474647882,-440.0,0.00022739,4]
[365118988,1749474647892,-440.0,0.00022739,4]
[365118989,1749474647902,-440.0,0.00022739,4]
[365118990,1749474647911,-400.0,0.00022739,4]
[365118991,1749474647920,-485.12809439,0.00022739,4]
[365118992,1749474647930,-440.0,0.00022739,4]
[365118993,1749474647940,-440.0,0.00022739,4]
[365118994,1749474647950,-440.0,0.00022739,4]
[365118995,1749474647959,-440.0,0.00022739,4]